Workbook

Sheet Summary
B3: Architecture Diagnostic Report (ADR): www.thesearchagency.com
B4: Report Period: 10/27/2010
B6: Issue Summary | I6: Issue Percentage
B7: All Issues by Severity | F7: All Issues by Severity | I7: Count of Issues by Severity
F8: Severity | G8: Count
F9: Critical | G9: =I143 -> 39
F10: Warning | G10: =I262 -> 11
F11: Info | G11: =I381 -> 91
F12: Total Issues | G12: =SUM(G9:G11) -> 141
F19: URL Summary
F20: Type | G20: # of URLs
F21: Issues | G21: ='Report Data'!L8 -> 39
F22: Non-issues | G22: ='Report Data'!L9 -> 61
F23: Total URLs Crawled | G23: =SUM(G21:G22) -> 100
B25: Issue Breakdown by Severity
B26: Critical
B42: CRITICAL | C42: Tab Names | D42: Long Desc | I42: Issue Count | J42: Critical % | K42: Total Issue %
C43: Short Meta Descriptions | D43: Pages found with meta description tag shorter than 125 characters | I43: 37 | J43: =I43/$I$143 -> 0.9487179487 | K43: =IF($G$12<>0,I43/$G$12,0) -> 0.2624113475
C44: Duplicate H1 Tags | D44: Pages found with duplicate H1 tags | I44: 2 | J44: =I44/$I$143 -> 0.05128205128 | K44: =IF($G$12<>0,I44/$G$12,0) -> 0.01418439716
C45: 0 | J45: =I45/$I$143 ->  | K45: =IF($G$12<>0,I45/$G$12,0) -> 
C46: 0
C47: 0
C48: 0
C49: 0
C50: 0
C51: 0
C52: 0
C53: 0
C54: 0
C55: 0
C56: 0
C57: 0 | J57: =I57/$I$143 ->  | K57: =IF($G$12<>0,I57/$G$12,0) -> 
C58: 0
C59: 0
C60: 0
C61: 0
C62: 0
C63: 0
C64: 0
C65: 0
C66: 0
C67: 0
C68: 0
C69: 0
C70: 0
C71: 0
C72: 0
C73: 0
C74: 0
C75: 0
C76: 0
C77: 0
C78: 0
C79: 0
C80: 0
C81: 0
C82: 0
C83: 0
C84: 0
C85: 0
C86: 0
C87: 0
C88: 0
C89: 0
C90: 0
C91: 0
C92: 0
C93: 0
C94: 0
C95: 0
C96: 0
C97: 0
C98: 0
C99: 0
C100: 0
C101: 0
C102: 0
C103: 0
C104: 0
C105: 0
C106: 0
C107: 0
C108: 0 | J108: =I108/$I$143 ->  | K108: =IF($G$12<>0,I108/$G$12,0) -> 
C109: 0
C110: 0
C111: 0
C112: 0
C113: 0
C114: 0
C115: 0
C116: 0
C117: 0
C118: 0
C119: 0
C120: 0
C121: 0
C122: 0
C123: 0
C124: 0
C125: 0
C126: 0
C127: 0
C128: 0
C129: 0
C130: 0
C131: 0
C132: 0
C133: 0
C134: 0
C135: 0
C136: 0
C137: 0
C138: 0
C139: 0
C140: 0
C141: 0
C142: 0
I143: =SUM(I43:I44) -> 39 | J143: 1 | K143: 0.2765957447
B145: Warning
E147: =SUM(E53:E66) -> 0
B161: WARNING | C161: Tab Names | D161: Long Desc | I161: Issue Count | J161: Warning % | K161: Total Issue %
C162: Short Title Tags | D162: Pages found with title tag shorter than 20 characters | I162: 11 | J162: =I162/$I$262 -> 1 | K162: =IF($G$12<>0,I162/$G$12,0) -> 0.0780141844
C163: 0
C164: 0
C165: 0
C166: 0
C167: 0
C168: 0 | J168: =I168/$I$262 ->  | K168: =IF($G$12<>0,I168/$G$12,0) -> 
C169: 0
C170: 0
C171: 0
C172: 0
C173: 0
C174: 0
C175: 0
C176: 0
C177: 0
C178: 0
C179: 0
C180: 0
C181: 0
C182: 0
C183: 0
C184: 0
C185: 0
C186: 0
C187: 0
C188: 0
C189: 0
C190: 0
C191: 0
C192: 0
C193: 0
C194: 0
C195: 0
C196: 0
C197: 0
C198: 0
C199: 0
C200: 0
C201: 0
C202: 0
C203: 0
C204: 0
C205: 0
C206: 0
C207: 0
C208: 0
C209: 0
C210: 0
C211: 0
C212: 0
C213: 0
C214: 0
C215: 0
C216: 0
C217: 0
C218: 0
C219: 0
C220: 0
C221: 0
C222: 0
C223: 0
C224: 0
C225: 0
C226: 0
C227: 0 | K227: =IF($G$12<>0,I227/$G$12,0) -> 
C228: 0
C229: 0
C230: 0
C231: 0
C232: 0 | J232: =I232/$I$262 -> 
C233: 0
C234: 0
C235: 0
C236: 0
C237: 0
C238: 0
C239: 0
C240: 0
... 126 more rows

Sheet Short Meta Descriptions
B3: Short Meta Descriptions
B5: Pages found with meta description tag shorter than 125 characters
B6: Total Count: 37
B8: Issue Severity: Critical
B9: URL | C9: Meta Description | D9: Character Count
B10: http://www.thesearchagency.com/search-engines/ | C10: Search Engine Guide | D10: 19
B11: http://www.thesearchagency.com/search-marketing-glossary/ | C11: Search Term Glossary | D11: 20
B12: http://www.thesearchagency.com/2010/20100127-the-search-agency-continues-strong-growth-in-2009.html | C12: Read about The Search Agency's Performance and Growth in 2009 | D12: 61
B13: http://www.thesearchagency.com/2009/20091112-david-hughes-authors-chapter.html | C13: Read about new research on search marketing and direct marketing | D13: 64
B14: http://www.thesearchagency.com/2009/20091020-deloitte-technology-fast-500.html | C14: Read how The Search Agency was ranked #83 in Deloitte's 2009 Technology Fast 500 | D14: 80
B15: http://www.thesearchagency.com/2010/20100608/the-search-agency-expands-its-east-coast-presence.html | C15: The Search Agency opens new office in Baltimore, MD to support clients across the country | D15: 89
B16: http://www.thesearchagency.com/advertising-age-top-search-marketing-firm.html | C16: Advertising Age named The Search Agency a Top U.S. Search Markeitng Firm in its 2010 Agency Report | D16: 98
B17: http://www.thesearchagency.com/search-marketing-glossary/api.html | C17: The complete definition of API. The term API and its definition. Looking for the definition of API? | D17: 99
B18: http://www.thesearchagency.com/search-marketing-glossary/blog.html | C18: The complete definition of Blog. The term Blog and its definition. Looking for the definition of Blog? | D18: 102
B19: http://www.thesearchagency.com/2009/20090825-cyberdefenderpartnership.html | C19: CyberDefender partners with The Search Agency. Read more about this partnership at TheSearchAgency.com. | D19: 104
B20: http://www.thesearchagency.com/2008/the-search-agency-opens-three-new-offices.html | C20: The Search Agency Opens Three New Offices. Learn more about it in the press release from The Search Agency. | D20: 107
B21: http://www.thesearchagency.com/2008/may-barbara-palmer.html | C21: The Search Agency Appoints Barbara Palmer as President. Press release, news and events of The Search Agency. | D21: 108
B22: http://www.thesearchagency.com/consumer-experience.html | C22: Learn about consumer experience and the value The Search Agency can add to your performance-based marketing. | D22: 108
B23: http://www.thesearchagency.com/search-marketing-glossary/banner.html | C23: The complete definition of Banner. The term Banner and its definition. Looking for the definition of Banner? | D23: 108
B24: http://www.thesearchagency.com/search-marketing-glossary/opt-in.html | C24: The complete definition of Opt-In. The term Opt-In and its definition. Looking for the definition of Opt-In? | D24: 108
B25: http://www.thesearchagency.com/search-marketing-glossary/applet.html | C25: The complete definition of Applet. The term Applet and its definition. Looking for the definition of Applet? | D25: 108
B26: http://www.thesearchagency.com/2007/jun-yahoo-panama-release.html | C26: Yahoo opens Panama search ad platform. Read this press release and other news and events of The Search Agency. | D26: 110
B27: http://www.thesearchagency.com/search-marketing-glossary/opt-out.html | C27: The complete definition of Opt-Out. The term Opt-Out and its definition. Looking for the definition of Opt-Out? | D27: 111
B28: http://www.thesearchagency.com/inthenews.html | C28: Review recent media coverage for the latest quotes and information. Get proven solutions with The Search Agency. | D28: 112
B29: http://www.thesearchagency.com/display-advertising.html | C29: Learn about ROI-based display advertising from The Search Agency and how it truly is a return on your investment. | D29: 113
B30: http://www.thesearchagency.com/press-releases.html | C30: Read the latest SEM and SEO news of The Search Agency with the following press releases. Read up and get informed. | D30: 114
B31: http://www.thesearchagency.com/search-marketing-glossary/cloaking.html | C31: The complete definition of Cloaking. The term Cloaking and its definition. Looking for the definition of Cloaking? | D31: 114
B32: http://www.thesearchagency.com/search-marketing-glossary/pagerank.html | C32: The complete definition of PageRank. The term PageRank and its definition. Looking for the definition of PageRank? | D32: 114
B33: http://www.thesearchagency.com/search-marketing-glossary/alt-text.html | C33: The complete definition of Alt Text. The term Alt Text and its definition. Looking for the definition of Alt Text? | D33: 114
B34: http://www.thesearchagency.com/search-marketing-glossary/ad-group.html | C34: The complete definition of Ad Group. The term Ad Group and its definition. Looking for the definition of Ad Group? | D34: 114
B35: http://www.thesearchagency.com/search-engine-marketing-sem.html | C35: Searching for search engine marketing services (SEM)? You've come to the right place. Welcome to The Search Agency. | D35: 115
B36: http://www.thesearchagency.com/search-marketing-glossary/algorithm.html | C36: The complete definition of Algorithm. The term Algorithm and its definition. Looking for the definition of Algorithm? | D36: 117
B37: http://www.thesearchagency.com/search-marketing-glossary/backlinks.html | C37: The complete definition of Backlinks. The term Backlinks and its definition. Looking for the definition of Backlinks? | D37: 117
B38: http://www.thesearchagency.com/search-marketing-glossary/modifiers.html | C38: The complete definition of Modifiers. The term Modifiers and its definition. Looking for the definition of Modifiers? | D38: 117
B39: http://www.thesearchagency.com/search-marketing-glossary/meta-tags.html | C39: The complete definition of Meta Tags. The term Meta Tags and its definition. Looking for the definition of Meta Tags? | D39: 117
B40: http://www.thesearchagency.com/2008/apr-jmi.html | C40: The Search Agency Announces Strategic Investment From JMI Equity - Press Release. News and events of The Search Agency. | D40: 119
B41: http://www.thesearchagency.com/2006/sep-move-in.html | C41: The Search Agency Completes Move-In to Accommodate Hiring Growth. News, press releases, and events of The Search Agency. | D41: 120
B42: http://www.thesearchagency.com/bid-optimization-tools-ppc.html | C42: Get the bid optimization and management you need with The Search Agency's AdMax platform. Learn more about this tool here. | D42: 122
B43: http://www.thesearchagency.com/website-architecture-analysis-tools.html | C43: Need website architecture analysis tools? Want to find out the best way to structure your site? Turn to The Search Agency. | D43: 122
B44: http://www.thesearchagency.com/search-marketing-glossary/conversions.html | C44: The complete definition of Conversions. The term Conversions and its definition. Looking for the definition of Conversions? | D44: 123
B45: http://www.thesearchagency.com/search-marketing-glossary/paid-search.html | C45: The complete definition of Paid Search. The term Paid Search and its definition. Looking for the definition of Paid Search? | D45: 123
B46: http://www.thesearchagency.com/comparison-shopping.html | C46: Learn about ROI-based comparison shopping management from The Search Agency and how it truly is a return on your investment. | D46: 124

Sheet Duplicate H1 Tags
B3: Duplicate H1 Tags
B5: Pages found with duplicate H1 tags
B6: Total Count: 2
B8: Issue Severity: Critical
B9: URL | C9: Duplicate
B10: http://www.thesearchagency.com/advertising-age-top-search-marketing-firm.html | C10: Advertising Age Names The Search Agency a Top U.S. Search Marketing Firm
B11: http://www.thesearchagency.com/2009/20090529-advertisingagetopsearchmarketingfirm.html | C11: Advertising Age Names The Search Agency a Top U.S. Search Marketing Firm

Sheet Short Title Tags
B3: Short Title Tags
B5: Pages found with title tag shorter than 20 characters
B6: Total Count: 11
B8: Issue Severity: Warning
B9: URL | C9: Title Tags | D9: Character Count
B10: http://www.thesearchagency.com/search-marketing-glossary/api.html | C10: API Definition | D10: 14
B11: http://www.thesearchagency.com/search-marketing-glossary/blog.html | C11: Blog Definition | D11: 15
B12: http://www.thesearchagency.com/search-marketing-glossary/applet.html | C12: Applet Definition | D12: 17
B13: http://www.thesearchagency.com/search-marketing-glossary/banner.html | C13: Banner Definition | D13: 17
B14: http://www.thesearchagency.com/search-marketing-glossary/opt-in.html | C14: Opt-In Definition | D14: 17
B15: http://www.thesearchagency.com/search-marketing-glossary/opt-out.html | C15: Opt-Out Definition | D15: 18
B16: http://www.thesearchagency.com/search-marketing-glossary/cloaking.html | C16: Cloaking Definition | D16: 19
B17: http://www.thesearchagency.com/search-marketing-glossary/pagerank.html | C17: PageRank Definition | D17: 19
B18: http://www.thesearchagency.com/search-engines/ | C18: Search Engine Guide | D18: 19
B19: http://www.thesearchagency.com/search-marketing-glossary/ad-group.html | C19: Ad Group Definition | D19: 19
B20: http://www.thesearchagency.com/search-marketing-glossary/alt-text.html | C20: Alt Text Definition | D20: 19

Sheet Short Meta Keywords
B3: Short Meta Keywords
B5: Pages found with meta keyword tag shorter than 80 characters
B6: Total Count: 51
B8: Issue Severity: Info
B9: URL | C9: Meta Keywords | D9: Character Count
B10: http://www.thesearchagency.com/search-engines/ | C10: Search Engine Guide | D10: 19
B11: http://www.thesearchagency.com/search-marketing-glossary/ | C11: Search Term Glossary | D11: 20
B12: http://www.thesearchagency.com/search-marketing-glossary/api.html | C12: API Glossary Definition | D12: 23
B13: http://www.thesearchagency.com/search-marketing-glossary/blog.html | C13: Blog Glossary Definition | D13: 24
B14: http://www.thesearchagency.com/search-marketing-glossary/banner.html | C14: Banner Glossary Definition | D14: 26
B15: http://www.thesearchagency.com/search-marketing-glossary/applet.html | C15: Applet Glossary Definition | D15: 26
B16: http://www.thesearchagency.com/search-marketing-glossary/opt-in.html | C16: Opt-In Glossary Definition | D16: 26
B17: http://www.thesearchagency.com/search-marketing-glossary/opt-out.html | C17: Opt-Out Glossary Definition | D17: 27
B18: http://www.thesearchagency.com/search-marketing-glossary/alt-text.html | C18: Alt Text Glossary Definition | D18: 28
B19: http://www.thesearchagency.com/2009/20091020-deloitte-technology-fast-500.html | C19: Deloitte Technology Fast 500 | D19: 28
B20: http://www.thesearchagency.com/search-marketing-glossary/ad-group.html | C20: Ad Group Glossary Definition | D20: 28
B21: http://www.thesearchagency.com/search-marketing-glossary/cloaking.html | C21: Cloaking Glossary Definition | D21: 28
B22: http://www.thesearchagency.com/search-marketing-glossary/pagerank.html | C22: PageRank Glossary Definition | D22: 28
B23: http://www.thesearchagency.com/search-marketing-glossary/meta-tags.html | C23: Meta Tags Glossary Definition | D23: 29
B24: http://www.thesearchagency.com/search-marketing-glossary/algorithm.html | C24: Algorithm Glossary Definition | D24: 29
B25: http://www.thesearchagency.com/search-marketing-glossary/backlinks.html | C25: Backlinks Glossary Definition | D25: 29
B26: http://www.thesearchagency.com/search-marketing-glossary/modifiers.html | C26: Modifiers Glossary Definition | D26: 29
B27: http://www.thesearchagency.com/search-marketing-glossary/conversions.html | C27: Conversions Glossary Definition | D27: 31
B28: http://www.thesearchagency.com/search-marketing-glossary/paid-search.html | C28: Paid Search Glossary Definition | D28: 31
B29: http://www.thesearchagency.com/search-marketing-glossary/pay-per-call.html | C29: Pay-Per-Call Glossary Definition | D29: 32
B30: http://www.thesearchagency.com/search-marketing-glossary/mirror-sites.html | C30: Mirror Sites Glossary Definition | D30: 32
B31: http://www.thesearchagency.com/search-marketing-glossary/local-search.html | C31: Local Search Glossary Definition | D31: 32
B32: http://www.thesearchagency.com/search-marketing-glossary/mobile-search.html | C32: Mobile Search Glossary Definition | D32: 33
B33: http://www.thesearchagency.com/search-marketing-glossary/paid-listings.html | C33: Paid Listings Glossary Definition | D33: 33
B34: http://www.thesearchagency.com/search-marketing-glossary/paid-inclusion.html | C34: Paid Inclusion Glossary Definition | D34: 34
B35: http://www.thesearchagency.com/search-marketing-glossary/paid-placement.html | C35: Paid Placement Glossary Definition | D35: 34
B36: http://www.thesearchagency.com/search-marketing-glossary/natural-search.html | C36: Natural Search Glossary Definition | D36: 34
B37: http://www.thesearchagency.com/search-marketing-glossary/organic-search.html | C37: Organic Search Glossary Definition | D37: 34
B38: http://www.thesearchagency.com/search-marketing-glossary/category-terms.html | C38: Category Terms Glossary Definition | D38: 34
B39: http://www.thesearchagency.com/search-marketing-glossary/outbound-links.html | C39: Outbound Links Glossary Definition | D39: 34
B40: http://www.thesearchagency.com/search-marketing-glossary/button-exchange.html | C40: Button Exchange Glossary Definition | D40: 35
B41: http://www.thesearchagency.com/search-marketing-glossary/packet-sniffing.html | C41: Packet Sniffing Glossary Definition | D41: 35
B42: http://www.thesearchagency.com/search-marketing-glossary/bid-to-position.html | C42: Bid to Position Glossary Definition | D42: 35
B43: http://www.thesearchagency.com/search-marketing-glossary/admax-bid-tool.html | C43: AdMax™ Bid Tool Glossary Definition | D43: 35
B44: http://www.thesearchagency.com/search-marketing-glossary/conversion-rate.html | C44: Conversion Rate Glossary Definition | D44: 35
B45: http://www.thesearchagency.com/search-marketing-glossary/organic-listings.html | C45: Organic Listings Glossary Definition | D45: 36
B46: http://www.thesearchagency.com/search-marketing-glossary/meta-keywords-tag.html | C46: Meta Keywords Tag Glossary Definition | D46: 37
B47: http://www.thesearchagency.com/search-marketing-glossary/meta-search-engine.html | C47: Meta Search Engine Glossary Definition | D47: 38
B48: http://www.thesearchagency.com/search-marketing-glossary/competitors-terms.html | C48: Competitor's Terms Glossary Definition | D48: 38
B49: http://www.thesearchagency.com/search-marketing-glossary/pay-for-performance.html | C49: Pay For Performance Glossary Definition | D49: 39
B50: http://www.thesearchagency.com/search-marketing-glossary/algorithmic-results.html | C50: Algorithmic Results Glossary Definition | D50: 39
B51: http://www.thesearchagency.com/search-marketing-glossary/business-name-terms.html | C51: Business Name Terms Glossary Definition | D51: 39
B52: http://www.thesearchagency.com/search-marketing-glossary/meta-description-tag.html | C52: Meta Description Tag Glossary Definition | D52: 40
B53: http://www.thesearchagency.com/search-marketing-glossary/cost-per-click-cpc.html | C53: Cost Per Click (CPC) Glossary Definition | D53: 40
B54: http://www.thesearchagency.com/search-marketing-glossary/cost-per-acquisition.html | C54: Cost Per Acquisition Glossary Definition | D54: 40
B55: http://www.thesearchagency.com/search-marketing-glossary/competitive-landscape.html | C55: Competitive Landscape Glossary Definition | D55: 41
B56: http://www.thesearchagency.com/search-marketing-glossary/cost-per-action-cpa.html | C56: Cost Per Action (CPA) Glossary Definition | D56: 41
B57: http://www.thesearchagency.com/search-marketing-glossary/click-through-rate-ctr.html | C57: Click Through Rate (CTR) Glossary Definition | D57: 44
B58: http://www.thesearchagency.com/2010/20100127-the-search-agency-continues-strong-growth-in-2009.html | C58: search agency, the search agency, search agency results | D58: 55
B59: http://www.thesearchagency.com/2009/20091112-david-hughes-authors-chapter.html | C59: David Hughes, SEO, SEM, search marketing, direct marketing | D59: 58
B60: http://www.thesearchagency.com/2010/20100608/the-search-agency-expands-its-east-coast-presence.html | C60: The Search Agency, TSA press release, TSA growth, TSA expansion | D60: 63

Sheet Short H1 Tags
B3: Short H1 Tags
B5: Pages found with H1 tag shorter than 15 characters
B6: Total Count: 29
B8: Issue Severity: Info
B9: URL | C9: H1 Tags | D9: Character Count
B10: http://www.thesearchagency.com/search-marketing-glossary/api.html | C10: API | D10: 3
B11: http://www.thesearchagency.com/search-marketing-glossary/blog.html | C11: Blog | D11: 4
B12: http://www.thesearchagency.com/search-marketing-glossary/applet.html | C12: Applet | D12: 6
B13: http://www.thesearchagency.com/search-marketing-glossary/banner.html | C13: Banner | D13: 6
B14: http://www.thesearchagency.com/search-marketing-glossary/opt-in.html | C14: Opt-In | D14: 6
B15: http://www.thesearchagency.com/search-marketing-glossary/opt-out.html | C15: Opt-Out | D15: 7
B16: http://www.thesearchagency.com/search-marketing-glossary/alt-text.html | C16: Alt Text | D16: 8
B17: http://www.thesearchagency.com/search-marketing-glossary/ | C17: Glossary | D17: 8
B18: http://www.thesearchagency.com/search-marketing-glossary/ad-group.html | C18: Ad Group | D18: 8
B19: http://www.thesearchagency.com/search-marketing-glossary/cloaking.html | C19: Cloaking | D19: 8
B20: http://www.thesearchagency.com/search-marketing-glossary/pagerank.html | C20: PageRank | D20: 8
B21: http://www.thesearchagency.com/search-marketing-glossary/algorithm.html | C21: Algorithm | D21: 9
B22: http://www.thesearchagency.com/search-marketing-glossary/meta-tags.html | C22: Meta Tags | D22: 9
B23: http://www.thesearchagency.com/search-marketing-glossary/backlinks.html | C23: Backlinks | D23: 9
B24: http://www.thesearchagency.com/search-marketing-glossary/modifiers.html | C24: Modifiers | D24: 9
B25: http://www.thesearchagency.com/contact-us.aspx | C25: Contact Us | D25: 10
B26: http://www.thesearchagency.com/search-marketing-glossary/conversions.html | C26: Conversions | D26: 11
B27: http://www.thesearchagency.com/search-marketing-glossary/paid-search.html | C27: Paid Search | D27: 11
B28: http://www.thesearchagency.com/search-marketing-glossary/pay-per-call.html | C28: Pay-Per-Call | D28: 12
B29: http://www.thesearchagency.com/search-marketing-glossary/local-search.html | C29: Local Search | D29: 12
B30: http://www.thesearchagency.com/search-marketing-glossary/mirror-sites.html | C30: Mirror Sites | D30: 12
B31: http://www.thesearchagency.com/search-marketing-glossary/mobile-search.html | C31: Mobile Search | D31: 13
B32: http://www.thesearchagency.com/search-marketing-glossary/paid-listings.html | C32: Paid Listings | D32: 13
B33: http://www.thesearchagency.com/search-marketing-glossary/paid-placement.html | C33: Paid Placement | D33: 14
B34: http://www.thesearchagency.com/search-marketing-glossary/paid-inclusion.html | C34: Paid Inclusion | D34: 14
B35: http://www.thesearchagency.com/search-marketing-glossary/natural-search.html | C35: Natural Search | D35: 14
B36: http://www.thesearchagency.com/search-marketing-glossary/organic-search.html | C36: Organic Search | D36: 14
B37: http://www.thesearchagency.com/search-marketing-glossary/category-terms.html | C37: Category Terms | D37: 14
B38: http://www.thesearchagency.com/search-marketing-glossary/outbound-links.html | C38: Outbound Links | D38: 14

Sheet Long H1 Tags
B3: Long H1 Tags
B5: Pages found with H1 tag longer than 75 characters
B6: Total Count: 7
B8: Issue Severity: Info
B9: URL | C9: H1 Tags | D9: Character Count
B10: http://www.thesearchagency.com/2009/20091020-deloitte-technology-fast-500.html | C10: The Search Agency Ranked 83rd Fastest Growing Company in North America on Deloitte's 2009 Technology Fast 500 | D10: 109
B11: http://www.thesearchagency.com/2006/nov-partner-summit.html | C11: The Search Agency Hosts Clients and Partners at Search Engine Marketing and Optimization Partner Summit | D11: 103
B12: http://www.thesearchagency.com/2006/dec-yahoo-panama-integration.html | C12: The Search Agency Provides Seamless Integration With Yahoo!'s New "Panama" Search Marketing Platform | D12: 100
B13: http://www.thesearchagency.com/2007/mar-conversionpathoptimization.html | C13: The Search Agency Announces the Launch of Online Conversion Rate Optimization Service | D13: 85
B14: http://www.thesearchagency.com/2009/20090825-cyberdefenderpartnership.html | C14: CyberDefender Partners With The Search Agency To Expand Customer Acquisition Efforts | D14: 84
B15: http://www.thesearchagency.com/2008/may-worldwidepartners-southkorea.html | C15: Worldwide Partners Enters South Korea; Adds Search And CRM Specialists in the US | D15: 80
B16: http://www.thesearchagency.com/2008/rising-star-on-deloitte.html | C16: The Search Agency Named Rising Star in Deloitte's Technology Fast 500 Program | D16: 77

Sheet URL Hyphens
B3: URL Hyphens
B5: URLs found with six or more hyphens
B6: Total Count: 3
B8: Issue Severity: Info
B9: URL | C9: Separator Count
B10: http://www.thesearchagency.com/2010/20100127-the-search-agency-continues-strong-growth-in-2009.html | C10: 8
B11: http://www.thesearchagency.com/2010/20100608/the-search-agency-expands-its-east-coast-presence.html | C11: 7
B12: http://www.thesearchagency.com/2008/the-search-agency-opens-three-new-offices.html | C12: 6

Sheet 301s
B3: 301s
B5: Redirect found - Permanent - 301 Response Code
B6: Total Count: 1
B8: Issue Severity: Info
B9: URL | C9: Redirected to URL | D9: Response Code
B10: http://www.thesearchagency.com/conversion-path-optimization.html | C10: http://www.thesearchagency.com/consumer-experience.html | D10: 301

Sheet Remaining Urls_1
B3: Remaining Urls_1
B5: URLs without issues
B6: Total Count: 61
B9: PageID | C9: URL | D9: Title | E9: Meta Description | F9: Meta Keyword | G9: H1 | H9: Page Size | I9: Response Code | J9: Response Time | K9: Comments
B10: 1 | C10: http://www.thesearchagency.com/ | D10: Search Engine Marketing and Search Engine Optimization Firm - The Search Agency | E10: Discover the search engine marketing firm, The Search Agency offering search engine optimization (SEO), search engine marketing (SEM), and conversion path optimization (CPO) services. | F10: search engine optimization, search engine marketing firm, search engine marketing, search engine, search, optimization, seo, sem, cpo, conversion rate, conversion, technology, process, service, results, the search agency | G10: THE SEARCH AGENCY - SEARCH ENGINE OPTIMIZATION/MARKETING FIRM | H10: 12 | I10: 200 | J10: 00:00:00.094
B11: 2 | C11: http://www.thesearchagency.com/about-us.html | D11: About Internet Marketing and The Search Agency | E11: Learn all about the internet marketing philosophy, technology, and ideals of The Search Agency. Get to know about this amazing agency. | F11: Internet marketing, online marketing, search marketing, internet, online, search, optimization, conversion path, conversions, conversion, sem, seo, cpo | G11: About The Search Agency and Internet Marketing | H11: 11 | I11: 200 | J11: 00:00:00.031
B12: 3 | C12: http://www.thesearchagency.com/search-marketing-philosophy.html | D12: Professional Search Engine Marketing Philosophy - The Search Agency | E12: Read the professional search engine marketing philosophy of The Search Agency and what we believe in when it comes to client interaction and process. | F12: professional search engine marketing, The search agency, philosophy, Internet marketing, online marketing, search marketing, internet, online, search, optimization, conversion path, conversions, conversion, sem, seo, cpo | G12: Professional Search Engine Marketing Philosophy | H12: 10 | I12: 200 | J12: 00:00:00.031
B13: 4 | C13: http://www.thesearchagency.com/management-team.html | D13: Internet Marketing Services Management Team - The Search Agency | E13: Looking for internet marketing services? Learn about The Search Agency's Management Team, the experience they bring, and the accomplishments they've made. | F13: Internet marketing services management team, internet marketing services, internet marketing service, internet marketing, internet, online, search, optimization, conversion path, conversions, conversion, sem, seo, cpo | G13: Internet Marketing Services Management Team | H13: 20 | I13: 200 | J13: 00:00:00.031
B14: 5 | C14: http://www.thesearchagency.com/locations.html | D14: Integrated Online Marketing Agency - The Search Agency | E14: Looking for an integrated online marketing agency? Turn to The Search Agency. Find our locations and how we can be contacted. | F14: los angeles search marketing agency, los angeles search marketing, search marketing agency, search engine marketing, the search agency | G14: Integrated Online Marketing Agency - Office Locations | H14: 11 | I14: 200 | J14: 00:00:00.031
B15: 6 | C15: http://www.thesearchagency.com/award-winning-search-marketing.html | D15: SEO, Search Engine Marketing Certification, Awards, and Affiliates | E15: Discover the SEO and search engine marketing certification, awards, and affiliates of The Search Agency. Learn about them all here. | F15: seo search engine marketing certification, search engine marketing awards, search engine marketing affiliates, internet, online, search, optimization, conversion path, conversions, conversion, sem, seo, cpo | G15: SEO and Search Engine Marketing Certifications | H15: 15 | I15: 200 | J15: 00:00:00.031
B16: 7 | C16: http://www.thesearchagency.com/jobs.html | D16: Search Engine Marketing Jobs - The Search Agency | E16: Discover search engine marketing jobs available at The Search Agency and join one of the top SEM/SEO agencies in the business. | F16: search engine marketing jobs, search engine marketing jobs, search engine marketing careers, search engine marketing career, Internet marketing, online marketing, search marketing, internet, online, search, optimization, conversion path, conversions, conversion, sem, seo, cpo | G16: Search Engine Marketing Jobs from The Search Agency | H16: 159 | I16: 200 | J16: 00:00:00.078
B17: 8 | C17: http://www.thesearchagency.com/contact-us.aspx | D17: Los Angeles Search Engine Marketing - Contact Us - Corporate Offices | E17: Find out about the corporate offices of the los angeles search engine marketing company, The Search Agency, addresses, and how to contact us. | F17: los angeles search engine marketing, The search agency corporate offices, the search agency, search marketing services, search engine marketing service, search engine marketing services, search marketing service, | G17: Contact Us | H17: 12 | I17: 200 | J17: 00:00:00.063
B18: 9 | C18: http://www.thesearchagency.com/integrated-online-marketing-services.html | D18: Integrated Online Marketing Services - The Search Agency | E18: Discover the online marketing services offered by The Search Agency and how you can reach your clients effectively online. SEO, SEM, online marketing, and more. | F18: search engine marketing services, search engine marketing, seo, sem, search engine optimization, conversion path, display ads, banner ads, the search agency | G18: Integrated Online Marketing Services | H18: 32 | I18: 200 | J18: 00:00:00.031
B19: 10 | C19: http://www.thesearchagency.com/search-engine-optimization.html | D19: Search Engine Optimization - SEO Service Overview – The Search Agency | E19: Search engine optimization (SEO) is a delicate process that requires a delicate and skilled touch. The Search Agency can help you with these services and more. | F19: Search engine optimization, seo, search engine optimization services, search optimization, optimize, the search agency | G19: Search Engine Optimization (SEO) | H19: 11 | I19: 200 | J19: 00:00:00.109
B20: 11 | C20: http://www.thesearchagency.com/social-media-marketing.html | D20: Social Media Marketing - The Search Agency | E20: Want to engage with customers through social networks like Facebook, Twitter, and MySpace? Perhaps you need a newer and more creative way to reach your clientele? The Search Agency provides Social Media marketing services for your every need. | F20: social media marketing, media marketing, social media, smm, social media services, social media marketing services, social networking, social networks, the search agency | G20: Social Media Marketing (SMM) | H20: 11 | I20: 200 | J20: 00:00:00.031
B21: 12 | C21: http://www.thesearchagency.com/integrated-marketing-solutions.html | D21: Integrated Marketing Solutions - The Search Agency | E21: Looking for integrated marketing solutions (IMS)? Turn to The Search Agency. We have the SEM, SEO, e-mail and display services your business needs. | F21: Integrated marketing solutions, ims, integrated marketing, sem, seo, email, e-mail, display, services, the search agency | G21: Integrated Marketing Solutions | H21: 11 | I21: 200 | J21: 00:00:00.031
B22: 13 | C22: http://www.thesearchagency.com/online-marketing-tools-technology.html | D22: SEO and SEM Tools and Technology from The Search Agency | E22: Looking for SEO and SEM tools and technology for your website? The Search Agency offers cutting edge services and technologies to help with your website and business needs. | F22: Seo tools, sem tools, seo technology, sem technology, search engine optimization, search engine marketing, tools, technology, the search agency | G22: Online Marketing Tools and Technology | H22: 13 | I22: 200 | J22: 00:00:00.016
B23: 14 | C23: http://www.thesearchagency.com/web-analytics-tools-reporting.html | D23: Analytics Tools and Reports - AdMax - The Search Agency | E23: The Search Agency offers analytics tools and reports to help you track clicks, ROI, and other metrix-driven activity on your website. Learn more here. | F23: analytics tools, web analytics reports, Seo tools, sem tools, seo technology, sem technology, search engine optimization, search engine marketing, tools, technology, the search agency | G23: AdMax™ Analytics and Reporting | H23: 33 | I23: 200 | J23: 00:00:00.031
B24: 15 | C24: http://www.thesearchagency.com/phone-tracking-sem-campaigns.html | D24: Phone Tracking for Online Advertising and SEM Campaigns - The Search Agency | E24: If you need phone tracking for online advertising and SEM campaigns, you need the services of The Search Agency. Track your online success. | F24: Phone tracking, online phone tracking, phone tracking sem campaigns, Seo tools, sem tools, seo technology, sem technology, search engine optimization, search engine marketing, tools, technology, the search agency | G24: AdMax™ Phone Conversion Tracking | H24: 40 | I24: 200 | J24: 00:00:00.047
B25: 16 | C25: http://www.thesearchagency.com/website-content-tools-seo.html | D25: Assessing Website Content - AdMax Content Tools - The Search Agency | E25: Need help assessing website content? Looking for SEO content tools? The Search Agency has the content analysis tools and technology you need. | F25: Assessing website content, seo content tools, Seo tools, sem tools, seo technology, sem technology, search engine optimization, search engine marketing, tools, technology, the search agency | G25: Assessing Website Content - AdMax™ Content Analysis Tool | H25: 11 | I25: 200 | J25: 00:00:00.031
B26: 17 | C26: http://www.thesearchagency.com/news.html | D26: Search Engine Marketing and Optimization News and Events - The Search Agency | E26: Get the latest search engine marketing and optimization news and events of The Search Agency. News, events, and press releases. | F26: Search engine marketing and optimization news, search engine marketing news, search engine optimization news, internet marketing, online marketing, search marketing, internet, online, search, optimization, conversion path, conversions, conversion, sem, seo, cpo | G26: Search Engine Marketing and Optimization News and Events | H26: 10 | I26: 200 | J26: 00:00:00.031
B27: 18 | C27: http://www.thesearchagency.com/events.html | D27: Search Engine Marketing Agency Events - The Search Agency | E27: search engine marketing agency events, search engine marketing agency, search engine marketing, internet marketing, online marketing, search marketing, internet, online, search, optimization, conversion path, conversions, conversion, sem, seo, cpo | F27: Search engine marketing agency events! Find out the latest events The Search Agency is involved in. | G27: Online Marketing Conferences | H27: 18 | I27: 200 | J27: 00:00:00.031
B28: 19 | C28: http://www.thesearchagency.com/online-marketing-news.html | D28: Online Marketing News -The Search Agency | E28: Read the latest search marketing news from The Search Agency's very own The Search Agent's blog. Stay up to date with the latest search marketing trends in SEM and SEO. | F28: search engine marketing news, search marketing news, search marketing, seo news, sem news, trends, trend, the search agents, the search agency | G28: Online Marketing News from The Search Agents Blog | H28: 15 | I28: 200 | J28: 00:00:00.016
B29: 20 | C29: http://www.thesearchagency.com/online-marketing-resources.html | D29: Browse Online Marketing Resources from The Search Agency | E29: For practical solutions, browse online marketing resources and learn the latest developments. Get answers from The Search Agency. | F29: online marketing resources, search engine optimization, online marketing, online optimization, search engine, marketing resources, the search agency | G29: Integrated Online Marketing Resources | H29: 10 | I29: 200 | J29: 00:00:00.031
B30: 21 | C30: http://www.thesearchagency.com/articles.html | D30: Review Authored Search Engine Marketing Articles from The Search Agency | E30: Browse authored search engine marketing articles from contributing team members. Get the latest expert information from The Search Agency. | F30: search engine optimization, online marketing resources, authored articles, online marketing, online optimization, marketing resources, the search agency | G30: The Search Agency Byline Articles | H30: 15 | I30: 200 | J30: 00:00:00.031
B31: 22 | C31: http://www.thesearchagency.com/casestudies/ | D31: Review Case Studies from The Search Agency | E31: To see real results, browse case studies of successful solutions. For integrated online marketing, turn to The Search Agency. | F31: search engine marketing, search engine optimization, marketing case studies, online marketing, online optimization, case studies, the search agency | G31: Integrated Online Marketing Case Studies | H31: 11 | I31: 200 | J31: 00:00:00.016
B32: 23 | C32: http://www.thesearchagency.com/whitepapers/ | D32: Professional Search Engine Marketing White Papers from The Search Agency | E32: Review professional search engine marketing white papers to find answers regarding your search engine marketing firm. For accurate performance information, choose The Search Agency. | F32: search engine optimization, search engine marketing, marketing white papers, search marketing firm, online optimization, online marketing, the search agency | G32: The Search Agency White Papers | H32: 17 | I32: 200 | J32: 00:00:00.016
B33: 24 | C33: http://www.thesearchagency.com/free-online-marketing-audit.html | D33: FREE online marketing audit from The Search Agency | E33: Get your FREE online marketing audit from The Search Agency. Find out how your business is doing in the online marketing space. | F33: Free online marketing audit, online marketing audit, marketing audit, search engine optimization, search engine marketing, online marketing, the search agency | G33: FREE Online Marketing Audit | H33: 11 | I33: 200 | J33: 00:00:00.016
B34: 25 | C34: http://www.thesearchagency.com/2009/2009093-internationalexpansion.html | D34: The Search Agency Accelerates its International Expansion – Press Release - September 3, 2009 | E34: Read how The Search Agency Accelerates its International Expansion and the new locations TSA has established offices. Learn more and get search marketing services from The Search Agency. | F34: The Search Agency Accelerates its International Expansion, the search agency, search agency, international expansion, the search agency offices | G34: The Search Agency Accelerates its International Expansion | H34: 10 | I34: 200 | J34: 00:00:00.016
B35: 26 | C35: http://www.thesearchagency.com/2009/20090616-thesearchagencymattkainchiefrevenueofficer.html | D35: Matt Kain Named Chief Revenue Officer – The Search Agency | E35: Breaking news! Matt Kain has been named Chief Revenue Officer of The Search Agency. Learn about his new involvement with The Search Agency. | F35: Matt kain chief revenue officer, matt kain cro, the search agency, search engine marketing, search engine optimization, ppc, cpo, the search agency | G35: The Search Agency Names Matt Kain Chief Revenue Officer | H35: 11 | I35: 200 | J35: 00:00:00.031
B36: 27 | C36: http://www.thesearchagency.com/2008/rising-star-on-deloitte.html | D36: The Search Agency Named Rising Star in Deloitte's Technology Fast 500 Program - Press Releases | E36: The Search Agency Named Rising Star in Deloitte's Technology Fast 500 Program - Press Release. News and events of The Search Agency. | F36: The Search Agency Named Rising Star in Deloitte's Technology Fast 500 Program , search engine marketing, internet marketing, online marketing, search marketing, internet, online, search, optimization, conversion path, conversions, conversion, sem, seo, cpo | G36: The Search Agency Named Rising Star in Deloitte's Technology Fast 500 Program | H36: 12 | I36: 200 | J36: 00:00:00.031
B37: 28 | C37: http://www.thesearchagency.com/2008/may-worldwidepartners-southkorea.html | D37: Worldwide Partners Enters South Korea - Press Releases | E37: Worldwide Partners Enters South Korea; Adds Search And CRM Specialists in the US - Press Release. News and events of The Search Agency. | F37: Worldwide Partners Enters South Korea; Adds Search And CRM Specialists in the US, search engine marketing, internet marketing, online marketing, search marketing, internet, online, search, optimization, conversion path, conversions, conversion, sem, seo, cpo | G37: Worldwide Partners Enters South Korea; Adds Search And CRM Specialists in the US | H37: 12 | I37: 200 | J37: 00:00:00.047
B38: 29 | C38: http://www.thesearchagency.com/2007/aug-yahooambassador.html | D38: The Search Agency Named As Yahoo! Search Marketing Certified Ambassador - Press Releases | E38: The Search Agency Named As Yahoo! Search Marketing Certified Ambassador. Read this press release and other news and events of The Search Agency. | F38: The Search Agency Named As Yahoo! Search Marketing Certified Ambassador, search engine marketing, internet marketing, online marketing, search marketing, internet, online, search, optimization, conversion path, conversions, conversion, sem, seo, cpo | G38: The Search Agency Named As Yahoo! Search Marketing Certified Ambassador | H38: 10 | I38: 200 | J38: 00:00:00.078
B39: 30 | C39: http://www.thesearchagency.com/2007/mar-conversionpathoptimization.html | D39: Launch of Online Conversion Rate Optimization Service - Press Releases | E39: Press Release: The Search Agency Announces the Launch of Online Conversion Rate Optimization Service. News and events of The Search Agency. | F39: The Search Agency Announces the Launch of Online Conversion Rate Optimization Service, internet marketing, online marketing, search marketing, internet, online, search, optimization, conversion path, conversions, conversion, sem, seo, cpo | G39: The Search Agency Announces the Launch of Online Conversion Rate Optimization Service | H39: 11 | I39: 200 | J39: 00:00:00.016
B40: 31 | C40: http://www.thesearchagency.com/2006/dec-yahoo-panama-integration.html | D40: The Search Agency Provides Seamless Integration With Yahoo! Panama - Press Releases | E40: The Search Agency Provides Seamless Integration with Yahoo!'s Panama. Learn more about it in the press release from The Search Agency. | F40: The Search Agency Provides Seamless Integration With Yahoo!'s New Panama Search Marketing Platform, internet marketing, online marketing, search marketing, internet, online, search, optimization, conversion path, conversions, conversion, sem, seo, cpo | G40: The Search Agency Provides Seamless Integration With Yahoo!'s New "Panama" Search Marketing Platform | H40: 12 | I40: 200 | J40: 00:00:00.047
B41: 32 | C41: http://www.thesearchagency.com/2006/nov-partner-summit.html | D41: The Search Agency Hosts Clients and Partners Summit - Press Releases | E41: The Search Agency Hosts Clients and Partners at Search Engine Marketing and Optimization Partner Summit. News and events of The Search Agency. | F41: The Search Agency Hosts Clients and Partners at Search Engine Marketing and Optimization Partner Summit, internet marketing, online marketing, search marketing, internet, online, search, optimization, conversion path, conversions, conversion, sem, seo, cpo | G41: The Search Agency Hosts Clients and Partners at Search Engine Marketing and Optimization Partner Summit | H41: 11 | I41: 200 | J41: 00:00:00.078
B42: 33 | C42: http://www.thesearchagency.com/search-marketing-glossary/local-search.html | D42: Local Search Definition | E42: The complete definition of Local Search. The term Local Search and its definition. Looking for the definition of Local Search? | F42: Local Search Glossary Definition | G42: Local Search | H42: 19 | I42: 200 | J42: 00:00:00.047
B43: 34 | C43: http://www.thesearchagency.com/search-marketing-glossary/admax-bid-tool.html | D43: AdMax™ Bid Tool Definition | E43: The complete definition of AdMax™ Bid Tool. The term AdMax™ Bid Tool and its definition. Looking for the definition of AdMax™ Bid Tool? | F43: AdMax™ Bid Tool Glossary Definition | G43: AdMax™ Bid Tool | H43: 19 | I43: 200 | J43: 00:00:00.016
B44: 35 | C44: http://www.thesearchagency.com/search-marketing-glossary/meta-description-tag.html | D44: Meta Description Tag Definition | E44: The complete definition of Meta Description Tag. The term Meta Description Tag and its definition. Looking for the definition of Meta Description Tag? | F44: Meta Description Tag Glossary Definition | G44: Meta Description Tag | H44: 19 | I44: 200 | J44: 00:00:00.031
B45: 36 | C45: http://www.thesearchagency.com/search-marketing-glossary/meta-keywords-tag.html | D45: Meta Keywords Tag Definition | E45: The complete definition of Meta Keywords Tag. The term Meta Keywords Tag and its definition. Looking for the definition of Meta Keywords Tag? | F45: Meta Keywords Tag Glossary Definition | G45: Meta Keywords Tag | H45: 19 | I45: 200 | J45: 00:00:00.016
B46: 37 | C46: http://www.thesearchagency.com/search-marketing-glossary/algorithmic-results.html | D46: Algorithmic Results Definition | E46: The complete definition of Algorithmic Results. The term Algorithmic Results and its definition. Looking for the definition of Algorithmic Results? | F46: Algorithmic Results Glossary Definition | G46: Algorithmic Results | H46: 19 | I46: 200 | J46: 00:00:00.016
B47: 38 | C47: http://www.thesearchagency.com/search-marketing-glossary/meta-search-engine.html | D47: Meta Search Engine Definition | E47: The complete definition of Meta Search Engine. The term Meta Search Engine and its definition. Looking for the definition of Meta Search Engine? | F47: Meta Search Engine Glossary Definition | G47: Meta Search Engine | H47: 19 | I47: 200 | J47: 00:00:00.031
B48: 39 | C48: http://www.thesearchagency.com/search-marketing-glossary/mirror-sites.html | D48: Mirror Sites Definition | E48: The complete definition of Mirror Sites. The term Mirror Sites and its definition. Looking for the definition of Mirror Sites? | F48: Mirror Sites Glossary Definition | G48: Mirror Sites | H48: 19 | I48: 200 | J48: 00:00:00.016
B49: 40 | C49: http://www.thesearchagency.com/search-marketing-glossary/mobile-search.html | D49: Mobile Search Definition | E49: The complete definition of Mobile Search. The term Mobile Search and its definition. Looking for the definition of Mobile Search? | F49: Mobile Search Glossary Definition | G49: Mobile Search | H49: 19 | I49: 200 | J49: 00:00:00.031
B50: 41 | C50: http://www.thesearchagency.com/search-marketing-glossary/natural-search.html | D50: Natural Search Definition | E50: The complete definition of Natural Search. The term Natural Search and its definition. Looking for the definition of Natural Search? | F50: Natural Search Glossary Definition | G50: Natural Search | H50: 19 | I50: 200 | J50: 00:00:00.031
B51: 42 | C51: http://www.thesearchagency.com/search-marketing-glossary/bid-to-position.html | D51: Bid to Position Definition | E51: The complete definition of Bid to Position. The term Bid to Position and its definition. Looking for the definition of Bid to Position? | F51: Bid to Position Glossary Definition | G51: Bid to Position | H51: 19 | I51: 200 | J51: 00:00:00.031
B52: 43 | C52: http://www.thesearchagency.com/search-marketing-glossary/business-name-terms.html | D52: Business Name Terms Definition | E52: The complete definition of Business Name Terms. The term Business Name Terms and its definition. Looking for the definition of Business Name Terms? | F52: Business Name Terms Glossary Definition | G52: Business Name Terms | H52: 19 | I52: 200 | J52: 00:00:00.031
B53: 44 | C53: http://www.thesearchagency.com/search-marketing-glossary/organic-listings.html | D53: Organic Listings Definition | E53: The complete definition of Organic Listings. The term Organic Listings and its definition. Looking for the definition of Organic Listings? | F53: Organic Listings Glossary Definition | G53: Organic Listings | H53: 18 | I53: 200 | J53: 00:00:00.031
B54: 45 | C54: http://www.thesearchagency.com/search-marketing-glossary/button-exchange.html | D54: Button Exchange Definition | E54: The complete definition of Button Exchange. The term Button Exchange and its definition. Looking for the definition of Button Exchange? | F54: Button Exchange Glossary Definition | G54: Button Exchange | H54: 19 | I54: 200 | J54: 00:00:00.031
B55: 46 | C55: http://www.thesearchagency.com/search-marketing-glossary/organic-search.html | D55: Organic Search Definition | E55: The complete definition of Organic Search. The term Organic Search and its definition. Looking for the definition of Organic Search? | F55: Organic Search Glossary Definition | G55: Organic Search | H55: 19 | I55: 200 | J55: 00:00:00.016
B56: 47 | C56: http://www.thesearchagency.com/search-marketing-glossary/category-terms.html | D56: Category Terms Definition | E56: The complete definition of Category Terms. The term Category Terms and its definition. Looking for the definition of Category Terms? | F56: Category Terms Glossary Definition | G56: Category Terms | H56: 19 | I56: 200 | J56: 00:00:00.031
B57: 48 | C57: http://www.thesearchagency.com/search-marketing-glossary/outbound-links.html | D57: Outbound Links Definition | E57: The complete definition of Outbound Links. The term Outbound Links and its definition. Looking for the definition of Outbound Links? | F57: Outbound Links Glossary Definition | G57: Outbound Links | H57: 18 | I57: 200 | J57: 00:00:00.078
B58: 49 | C58: http://www.thesearchagency.com/search-marketing-glossary/click-through-rate-ctr.html | D58: Click Through Rate (CTR) Definition | E58: The complete definition of Click Through Rate (CTR). The term Click Through Rate (CTR) and its definition. Looking for the definition of Click Through Rate (CTR)? | F58: Click Through Rate (CTR) Glossary Definition | G58: Click Through Rate (CTR) | H58: 19 | I58: 200 | J58: 00:00:00.078
B59: 50 | C59: http://www.thesearchagency.com/search-marketing-glossary/packet-sniffing.html | D59: Packet Sniffing Definition | E59: The complete definition of Packet Sniffing. The term Packet Sniffing and its definition. Looking for the definition of Packet Sniffing? | F59: Packet Sniffing Glossary Definition | G59: Packet Sniffing | H59: 19 | I59: 200 | J59: 00:00:00.016
B60: 51 | C60: http://www.thesearchagency.com/search-marketing-glossary/competitive-landscape.html | D60: Competitive Landscape Definition | E60: The complete definition of Competitive Landscape. The term Competitive Landscape and its definition. Looking for the definition of Competitive Landscape? | F60: Competitive Landscape Glossary Definition | G60: Competitive Landscape | H60: 49 | I60: 200 | J60: 00:00:00.047
B61: 52 | C61: http://www.thesearchagency.com/search-marketing-glossary/paid-inclusion.html | D61: Paid Inclusion Definition | E61: The complete definition of Paid Inclusion. The term Paid Inclusion and its definition. Looking for the definition of Paid Inclusion? | F61: Paid Inclusion Glossary Definition | G61: Paid Inclusion | H61: 19 | I61: 200 | J61: 00:00:00.016
B62: 53 | C62: http://www.thesearchagency.com/search-marketing-glossary/competitors-terms.html | D62: Competitor's Terms Definition | E62: The complete definition of Competitor's Terms. The term Competitor's Terms and its definition. Looking for the definition of Competitor's Terms? | F62: Competitor's Terms Glossary Definition | G62: Competitor's Terms | H62: 19 | I62: 200 | J62: 00:00:00.094
B63: 54 | C63: http://www.thesearchagency.com/search-marketing-glossary/paid-listings.html | D63: Paid Listings Definition | E63: The complete definition of Paid Listings. The term Paid Listings and its definition. Looking for the definition of Paid Listings? | F63: Paid Listings Glossary Definition | G63: Paid Listings | H63: 19 | I63: 200 | J63: 00:00:00.031
B64: 55 | C64: http://www.thesearchagency.com/search-marketing-glossary/conversion-rate.html | D64: Conversion Rate Definition | E64: The complete definition of Conversion Rate. The term Conversion Rate and its definition. Looking for the definition of Conversion Rate? | F64: Conversion Rate Glossary Definition | G64: Conversion Rate | H64: 19 | I64: 200 | J64: 00:00:00.031
B65: 56 | C65: http://www.thesearchagency.com/search-marketing-glossary/paid-placement.html | D65: Paid Placement Definition | E65: The complete definition of Paid Placement. The term Paid Placement and its definition. Looking for the definition of Paid Placement? | F65: Paid Placement Glossary Definition | G65: Paid Placement | H65: 19 | I65: 200 | J65: 00:00:00.016
B66: 57 | C66: http://www.thesearchagency.com/search-marketing-glossary/cost-per-acquisition.html | D66: Cost Per Acquisition Definition | E66: The complete definition of Cost Per Acquisition. The term Cost Per Acquisition and its definition. Looking for the definition of Cost Per Acquisition? | F66: Cost Per Acquisition Glossary Definition | G66: Cost Per Acquisition | H66: 19 | I66: 200 | J66: 00:00:00.031
B67: 58 | C67: http://www.thesearchagency.com/search-marketing-glossary/pay-for-performance.html | D67: Pay For Performance Definition | E67: The complete definition of Pay For Performance. The term Pay For Performance and its definition. Looking for the definition of Pay For Performance? | F67: Pay For Performance Glossary Definition | G67: Pay For Performance | H67: 19 | I67: 200 | J67: 00:00:00.031
B68: 59 | C68: http://www.thesearchagency.com/search-marketing-glossary/cost-per-action-cpa.html | D68: Cost Per Action (CPA) Definition | E68: The complete definition of Cost Per Action (CPA). The term Cost Per Action (CPA) and its definition. Looking for the definition of Cost Per Action (CPA)? | F68: Cost Per Action (CPA) Glossary Definition | G68: Cost Per Action (CPA) | H68: 19 | I68: 200 | J68: 00:00:00.031
B69: 60 | C69: http://www.thesearchagency.com/search-marketing-glossary/pay-per-call.html | D69: Pay-Per-Call Definition | E69: The complete definition of Pay-Per-Call. The term Pay-Per-Call and its definition. Looking for the definition of Pay-Per-Call? | F69: Pay-Per-Call Glossary Definition | G69: Pay-Per-Call | H69: 19 | I69: 200 | J69: 00:00:00.031
B70: 61 | C70: http://www.thesearchagency.com/search-marketing-glossary/cost-per-click-cpc.html | D70: Cost Per Click (CPC) Definition | E70: The complete definition of Cost Per Click (CPC). The term Cost Per Click (CPC) and its definition. Looking for the definition of Cost Per Click (CPC)? | F70: Cost Per Click (CPC) Glossary Definition | G70: Cost Per Click (CPC) | H70: 19 | I70: 200 | J70: 00:00:00.031

Sheet Spidered Urls_1
B3: Spidered Urls_1
B5: Spidered URLs (raw data)
B6: Total Count: 100
B9: PageID | C9: URL | D9: Title | E9: Meta Description | F9: Meta Keyword | G9: H1 | H9: Page Size | I9: Response Code | J9: Response Time | K9: Comments
B10: 1 | C10: http://www.thesearchagency.com/ | D10: Search Engine Marketing and Search Engine Optimization Firm - The Search Agency | E10: Discover the search engine marketing firm, The Search Agency offering search engine optimization (SEO), search engine marketing (SEM), and conversion path optimization (CPO) services. | F10: search engine optimization, search engine marketing firm, search engine marketing, search engine, search, optimization, seo, sem, cpo, conversion rate, conversion, technology, process, service, results, the search agency | G10: THE SEARCH AGENCY - SEARCH ENGINE OPTIMIZATION/MARKETING FIRM | H10: 12 | I10: 200 | J10: 00:00:00.094
B11: 2 | C11: http://www.thesearchagency.com/about-us.html | D11: About Internet Marketing and The Search Agency | E11: Learn all about the internet marketing philosophy, technology, and ideals of The Search Agency. Get to know about this amazing agency. | F11: Internet marketing, online marketing, search marketing, internet, online, search, optimization, conversion path, conversions, conversion, sem, seo, cpo | G11: About The Search Agency and Internet Marketing | H11: 11 | I11: 200 | J11: 00:00:00.031
B12: 3 | C12: http://www.thesearchagency.com/search-marketing-philosophy.html | D12: Professional Search Engine Marketing Philosophy - The Search Agency | E12: Read the professional search engine marketing philosophy of The Search Agency and what we believe in when it comes to client interaction and process. | F12: professional search engine marketing, The search agency, philosophy, Internet marketing, online marketing, search marketing, internet, online, search, optimization, conversion path, conversions, conversion, sem, seo, cpo | G12: Professional Search Engine Marketing Philosophy | H12: 10 | I12: 200 | J12: 00:00:00.031
B13: 4 | C13: http://www.thesearchagency.com/management-team.html | D13: Internet Marketing Services Management Team - The Search Agency | E13: Looking for internet marketing services? Learn about The Search Agency's Management Team, the experience they bring, and the accomplishments they've made. | F13: Internet marketing services management team, internet marketing services, internet marketing service, internet marketing, internet, online, search, optimization, conversion path, conversions, conversion, sem, seo, cpo | G13: Internet Marketing Services Management Team | H13: 20 | I13: 200 | J13: 00:00:00.031
B14: 5 | C14: http://www.thesearchagency.com/locations.html | D14: Integrated Online Marketing Agency - The Search Agency | E14: Looking for an integrated online marketing agency? Turn to The Search Agency. Find our locations and how we can be contacted. | F14: los angeles search marketing agency, los angeles search marketing, search marketing agency, search engine marketing, the search agency | G14: Integrated Online Marketing Agency - Office Locations | H14: 11 | I14: 200 | J14: 00:00:00.031
B15: 6 | C15: http://www.thesearchagency.com/award-winning-search-marketing.html | D15: SEO, Search Engine Marketing Certification, Awards, and Affiliates | E15: Discover the SEO and search engine marketing certification, awards, and affiliates of The Search Agency. Learn about them all here. | F15: seo search engine marketing certification, search engine marketing awards, search engine marketing affiliates, internet, online, search, optimization, conversion path, conversions, conversion, sem, seo, cpo | G15: SEO and Search Engine Marketing Certifications | H15: 15 | I15: 200 | J15: 00:00:00.031
B16: 7 | C16: http://www.thesearchagency.com/jobs.html | D16: Search Engine Marketing Jobs - The Search Agency | E16: Discover search engine marketing jobs available at The Search Agency and join one of the top SEM/SEO agencies in the business. | F16: search engine marketing jobs, search engine marketing jobs, search engine marketing careers, search engine marketing career, Internet marketing, online marketing, search marketing, internet, online, search, optimization, conversion path, conversions, conversion, sem, seo, cpo | G16: Search Engine Marketing Jobs from The Search Agency | H16: 159 | I16: 200 | J16: 00:00:00.078
B17: 8 | C17: http://www.thesearchagency.com/contact-us.aspx | D17: Los Angeles Search Engine Marketing - Contact Us - Corporate Offices | E17: Find out about the corporate offices of the los angeles search engine marketing company, The Search Agency, addresses, and how to contact us. | F17: los angeles search engine marketing, The search agency corporate offices, the search agency, search marketing services, search engine marketing service, search engine marketing services, search marketing service, | G17: Contact Us | H17: 12 | I17: 200 | J17: 00:00:00.063
B18: 9 | C18: http://www.thesearchagency.com/integrated-online-marketing-services.html | D18: Integrated Online Marketing Services - The Search Agency | E18: Discover the online marketing services offered by The Search Agency and how you can reach your clients effectively online. SEO, SEM, online marketing, and more. | F18: search engine marketing services, search engine marketing, seo, sem, search engine optimization, conversion path, display ads, banner ads, the search agency | G18: Integrated Online Marketing Services | H18: 32 | I18: 200 | J18: 00:00:00.031
B19: 10 | C19: http://www.thesearchagency.com/search-engine-marketing-sem.html | D19: Search Engine Marketing - SEM Services - The Search Agency | E19: Searching for search engine marketing services (SEM)? You've come to the right place. Welcome to The Search Agency. | F19: Search engine marketing, sem ,search engine marketing services, sem services, the search agency | G19: Search Engine Marketing (SEM) | H19: 13 | I19: 200 | J19: 00:00:00.031
B20: 11 | C20: http://www.thesearchagency.com/search-engine-optimization.html | D20: Search Engine Optimization - SEO Service Overview – The Search Agency | E20: Search engine optimization (SEO) is a delicate process that requires a delicate and skilled touch. The Search Agency can help you with these services and more. | F20: Search engine optimization, seo, search engine optimization services, search optimization, optimize, the search agency | G20: Search Engine Optimization (SEO) | H20: 11 | I20: 200 | J20: 00:00:00.109
B21: 12 | C21: http://www.thesearchagency.com/consumer-experience.html | D21: Consumer Experience - The Search Agency | E21: Learn about consumer experience and the value The Search Agency can add to your performance-based marketing. | F21: consumer experience, landing page optimization, conversion path optimization, conversion rate optimization, the search agency | G21: Consumer Experience | H21: 13 | I21: 200 | J21: 00:00:00.078
B22: 13 | C22: http://www.thesearchagency.com/comparison-shopping.html | D22: Comparison Shopping Management - Return on YOUR Investment - The Search Agency | E22: Learn about ROI-based comparison shopping management from The Search Agency and how it truly is a return on your investment. | F22: Comparison shopping, comparison shopping engines, comparison shopping management, CSM, return on investment | G22: Comparison Shopping Management | H22: 11 | I22: 200 | J22: 00:00:00.031
B23: 14 | C23: http://www.thesearchagency.com/display-advertising.html | D23: Display Advertising - Return on YOUR Investment - The Search Agency | E23: Learn about ROI-based display advertising from The Search Agency and how it truly is a return on your investment. | F23: Display advertising, roi based display advertising, advertising display, return on investment | G23: ROI-Based Display Advertising | H23: 11 | I23: 200 | J23: 00:00:00.031
B24: 15 | C24: http://www.thesearchagency.com/social-media-marketing.html | D24: Social Media Marketing - The Search Agency | E24: Want to engage with customers through social networks like Facebook, Twitter, and MySpace? Perhaps you need a newer and more creative way to reach your clientele? The Search Agency provides Social Media marketing services for your every need. | F24: social media marketing, media marketing, social media, smm, social media services, social media marketing services, social networking, social networks, the search agency | G24: Social Media Marketing (SMM) | H24: 11 | I24: 200 | J24: 00:00:00.031
B25: 16 | C25: http://www.thesearchagency.com/integrated-marketing-solutions.html | D25: Integrated Marketing Solutions - The Search Agency | E25: Looking for integrated marketing solutions (IMS)? Turn to The Search Agency. We have the SEM, SEO, e-mail and display services your business needs. | F25: Integrated marketing solutions, ims, integrated marketing, sem, seo, email, e-mail, display, services, the search agency | G25: Integrated Marketing Solutions | H25: 11 | I25: 200 | J25: 00:00:00.031
B26: 17 | C26: http://www.thesearchagency.com/online-marketing-tools-technology.html | D26: SEO and SEM Tools and Technology from The Search Agency | E26: Looking for SEO and SEM tools and technology for your website? The Search Agency offers cutting edge services and technologies to help with your website and business needs. | F26: Seo tools, sem tools, seo technology, sem technology, search engine optimization, search engine marketing, tools, technology, the search agency | G26: Online Marketing Tools and Technology | H26: 13 | I26: 200 | J26: 00:00:00.016
B27: 18 | C27: http://www.thesearchagency.com/web-analytics-tools-reporting.html | D27: Analytics Tools and Reports - AdMax - The Search Agency | E27: The Search Agency offers analytics tools and reports to help you track clicks, ROI, and other metrix-driven activity on your website. Learn more here. | F27: analytics tools, web analytics reports, Seo tools, sem tools, seo technology, sem technology, search engine optimization, search engine marketing, tools, technology, the search agency | G27: AdMax™ Analytics and Reporting | H27: 33 | I27: 200 | J27: 00:00:00.031
B28: 19 | C28: http://www.thesearchagency.com/bid-optimization-tools-ppc.html | D28: Bid Optimization Tools, AdMax PPC Campaign Management, The Search Agency | E28: Get the bid optimization and management you need with The Search Agency's AdMax platform. Learn more about this tool here. | F28: Bid optimization, ppc campaign management, Seo tools, sem tools, seo technology, sem technology, search engine optimization, search engine marketing, tools, technology, the search agency | G28: AdMax™ Bid Optimization and PPC Campaign Management | H28: 11 | I28: 200 | J28: 00:00:00.031
B29: 20 | C29: http://www.thesearchagency.com/phone-tracking-sem-campaigns.html | D29: Phone Tracking for Online Advertising and SEM Campaigns - The Search Agency | E29: If you need phone tracking for online advertising and SEM campaigns, you need the services of The Search Agency. Track your online success. | F29: Phone tracking, online phone tracking, phone tracking sem campaigns, Seo tools, sem tools, seo technology, sem technology, search engine optimization, search engine marketing, tools, technology, the search agency | G29: AdMax™ Phone Conversion Tracking | H29: 40 | I29: 200 | J29: 00:00:00.047
B30: 21 | C30: http://www.thesearchagency.com/website-architecture-analysis-tools.html | D30: AdMax Website Architecture Analysis Tools - Best Solutions - The Search Agency | E30: Need website architecture analysis tools? Want to find out the best way to structure your site? Turn to The Search Agency. | F30: Website architecture, site architecture, analysis tools, best website architecture, Seo tools, sem tools, seo technology, sem technology, search engine optimization, search engine marketing, tools, technology, the search agency | G30: AdMax™ Website Architecture Analysis Tools | H30: 11 | I30: 200 | J30: 00:00:00.031
B31: 22 | C31: http://www.thesearchagency.com/website-content-tools-seo.html | D31: Assessing Website Content - AdMax Content Tools - The Search Agency | E31: Need help assessing website content? Looking for SEO content tools? The Search Agency has the content analysis tools and technology you need. | F31: Assessing website content, seo content tools, Seo tools, sem tools, seo technology, sem technology, search engine optimization, search engine marketing, tools, technology, the search agency | G31: Assessing Website Content - AdMax™ Content Analysis Tool | H31: 11 | I31: 200 | J31: 00:00:00.031
B32: 23 | C32: http://www.thesearchagency.com/news.html | D32: Search Engine Marketing and Optimization News and Events - The Search Agency | E32: Get the latest search engine marketing and optimization news and events of The Search Agency. News, events, and press releases. | F32: Search engine marketing and optimization news, search engine marketing news, search engine optimization news, internet marketing, online marketing, search marketing, internet, online, search, optimization, conversion path, conversions, conversion, sem, seo, cpo | G32: Search Engine Marketing and Optimization News and Events | H32: 10 | I32: 200 | J32: 00:00:00.031
B33: 24 | C33: http://www.thesearchagency.com/press-releases.html | D33: SEM and SEO News - Press Releases - The Search Agency | E33: Read the latest SEM and SEO news of The Search Agency with the following press releases. Read up and get informed. | F33: Sem and seo news, sem news, seo news, internet marketing, online marketing, search marketing, internet, online, search, optimization, conversion path, conversions, conversion, sem, seo, cpo | G33: The Search Agency Press Releases | H33: 13 | I33: 200 | J33: 00:00:00.016
B34: 25 | C34: http://www.thesearchagency.com/inthenews.html | D34: Browse Media Coverage for The Search Agency | E34: Review recent media coverage for the latest quotes and information. Get proven solutions with The Search Agency. | F34: search engine marketing, search engine optimization, online media coverage, online marketing, media coverage, online optimization, case studies, the search agency | G34: The Search Agency in the News | H34: 13 | I34: 200 | J34: 00:00:00.203
B35: 26 | C35: http://www.thesearchagency.com/events.html | D35: Search Engine Marketing Agency Events - The Search Agency | E35: search engine marketing agency events, search engine marketing agency, search engine marketing, internet marketing, online marketing, search marketing, internet, online, search, optimization, conversion path, conversions, conversion, sem, seo, cpo | F35: Search engine marketing agency events! Find out the latest events The Search Agency is involved in. | G35: Online Marketing Conferences | H35: 18 | I35: 200 | J35: 00:00:00.031
B36: 27 | C36: http://www.thesearchagency.com/online-marketing-news.html | D36: Online Marketing News -The Search Agency | E36: Read the latest search marketing news from The Search Agency's very own The Search Agent's blog. Stay up to date with the latest search marketing trends in SEM and SEO. | F36: search engine marketing news, search marketing news, search marketing, seo news, sem news, trends, trend, the search agents, the search agency | G36: Online Marketing News from The Search Agents Blog | H36: 15 | I36: 200 | J36: 00:00:00.016
B37: 28 | C37: http://www.thesearchagency.com/online-marketing-resources.html | D37: Browse Online Marketing Resources from The Search Agency | E37: For practical solutions, browse online marketing resources and learn the latest developments. Get answers from The Search Agency. | F37: online marketing resources, search engine optimization, online marketing, online optimization, search engine, marketing resources, the search agency | G37: Integrated Online Marketing Resources | H37: 10 | I37: 200 | J37: 00:00:00.031
B38: 29 | C38: http://www.thesearchagency.com/articles.html | D38: Review Authored Search Engine Marketing Articles from The Search Agency | E38: Browse authored search engine marketing articles from contributing team members. Get the latest expert information from The Search Agency. | F38: search engine optimization, online marketing resources, authored articles, online marketing, online optimization, marketing resources, the search agency | G38: The Search Agency Byline Articles | H38: 15 | I38: 200 | J38: 00:00:00.031
B39: 30 | C39: http://www.thesearchagency.com/casestudies/ | D39: Review Case Studies from The Search Agency | E39: To see real results, browse case studies of successful solutions. For integrated online marketing, turn to The Search Agency. | F39: search engine marketing, search engine optimization, marketing case studies, online marketing, online optimization, case studies, the search agency | G39: Integrated Online Marketing Case Studies | H39: 11 | I39: 200 | J39: 00:00:00.016
B40: 31 | C40: http://www.thesearchagency.com/whitepapers/ | D40: Professional Search Engine Marketing White Papers from The Search Agency | E40: Review professional search engine marketing white papers to find answers regarding your search engine marketing firm. For accurate performance information, choose The Search Agency. | F40: search engine optimization, search engine marketing, marketing white papers, search marketing firm, online optimization, online marketing, the search agency | G40: The Search Agency White Papers | H40: 17 | I40: 200 | J40: 00:00:00.016
B41: 32 | C41: http://www.thesearchagency.com/search-marketing-glossary/ | D41: Search Term Glossary | E41: Search Term Glossary | F41: Search Term Glossary | G41: Glossary | H41: 25 | I41: 200 | J41: 00:00:00.031
B42: 33 | C42: http://www.thesearchagency.com/search-engines/ | D42: Search Engine Guide | E42: Search Engine Guide | F42: Search Engine Guide | G42: Search Engine Guide | H42: 14 | I42: 200 | J42: 00:00:00.016
B43: 34 | C43: http://www.thesearchagency.com/2009/20091020-deloitte-technology-fast-500.html | D43: The Search Agency Ranked 83rd Fastest Growing Company in North America on Deloitte's 2009 Technology Fast 500 - Press Release, October 20, 2009 | E43: Read how The Search Agency was ranked #83 in Deloitte's 2009 Technology Fast 500 | F43: Deloitte Technology Fast 500 | G43: The Search Agency Ranked 83rd Fastest Growing Company in North America on Deloitte's 2009 Technology Fast 500 | H43: 13 | I43: 200 | J43: 00:00:00.094
B44: 35 | C44: http://www.thesearchagency.com/free-online-marketing-audit.html | D44: FREE online marketing audit from The Search Agency | E44: Get your FREE online marketing audit from The Search Agency. Find out how your business is doing in the online marketing space. | F44: Free online marketing audit, online marketing audit, marketing audit, search engine optimization, search engine marketing, online marketing, the search agency | G44: FREE Online Marketing Audit | H44: 11 | I44: 200 | J44: 00:00:00.016
B45: 36 | C45: http://www.thesearchagency.com/pdfs/admax-reporting-and-analytics.pdf | I45: 200 | J45: 00:00:00
B46: 37 | C46: http://www.thesearchagency.com/pdfs/admax-phone-conversion-tracking.pdf | I46: 200 | J46: 00:00:00
B47: 38 | C47: http://www.thesearchagency.com/pdfs/admax-architecture-diagnosic-report.pdf | I47: 200 | J47: 00:00:00
B48: 39 | C48: http://www.thesearchagency.com/pdfs/admax-content-analysis-tool.pdf | I48: 200 | J48: 00:00:00
B49: 40 | C49: http://www.thesearchagency.com/2010/20100608/the-search-agency-expands-its-east-coast-presence.html | D49: The Search Agency Expands its East Coast Presence | E49: The Search Agency opens new office in Baltimore, MD to support clients across the country | F49: The Search Agency, TSA press release, TSA growth, TSA expansion | G49: The Search Agency Expands its East Coast Presence | H49: 10 | I49: 200 | J49: 00:00:00.047
B50: 41 | C50: http://www.thesearchagency.com/advertising-age-top-search-marketing-firm.html | D50: Advertising Age Names The Search Agency a Top U.S. Search Marketing Firm | E50: Advertising Age named The Search Agency a Top U.S. Search Markeitng Firm in its 2010 Agency Report | F50: Ad Age, Advertising Age, Top Search Marketing Firms, Top Search Marketing Agencies | G50: Advertising Age Names The Search Agency a Top U.S. Search Marketing Firm | H50: 11 | I50: 200 | J50: 00:00:00.031
B51: 42 | C51: http://www.thesearchagency.com/2010/20100127-the-search-agency-continues-strong-growth-in-2009.html | D51: The Search Agency Continues Strong Growth in 2009 | E51: Read about The Search Agency's Performance and Growth in 2009 | F51: search agency, the search agency, search agency results | G51: The Search Agency Continues Strong Growth in 2009 | H51: 11 | I51: 200 | J51: 00:00:00.031
B52: 43 | C52: http://www.thesearchagency.com/2009/20091112-david-hughes-authors-chapter.html | D52: David Hughes Authors Chapter on Convergence of Search and Direct Marketing - Press Release - November 12, 2009 | E52: Read about new research on search marketing and direct marketing | F52: David Hughes, SEO, SEM, search marketing, direct marketing | G52: David Hughes Authors Chapter on Convergence of Search and Direct Marketing | H52: 31 | I52: 200 | J52: 00:00:00.031
B53: 44 | C53: http://www.thesearchagency.com/2009/2009093-internationalexpansion.html | D53: The Search Agency Accelerates its International Expansion – Press Release - September 3, 2009 | E53: Read how The Search Agency Accelerates its International Expansion and the new locations TSA has established offices. Learn more and get search marketing services from The Search Agency. | F53: The Search Agency Accelerates its International Expansion, the search agency, search agency, international expansion, the search agency offices | G53: The Search Agency Accelerates its International Expansion | H53: 10 | I53: 200 | J53: 00:00:00.016
B54: 45 | C54: http://www.thesearchagency.com/2009/20090825-cyberdefenderpartnership.html | D54: CyberDefender Partners With The Search Agency | E54: CyberDefender partners with The Search Agency. Read more about this partnership at TheSearchAgency.com. | F54: Cyberdefender partnership, cyberdefender the search agency, cyberdefender search engine marketing, cyberdefender search engine optimization, ssp, search submit pro, the search agency | G54: CyberDefender Partners With The Search Agency To Expand Customer Acquisition Efforts | H54: 14 | I54: 200 | J54: 00:00:00.031
B55: 46 | C55: http://www.thesearchagency.com/2009/20090616-thesearchagencymattkainchiefrevenueofficer.html | D55: Matt Kain Named Chief Revenue Officer – The Search Agency | E55: Breaking news! Matt Kain has been named Chief Revenue Officer of The Search Agency. Learn about his new involvement with The Search Agency. | F55: Matt kain chief revenue officer, matt kain cro, the search agency, search engine marketing, search engine optimization, ppc, cpo, the search agency | G55: The Search Agency Names Matt Kain Chief Revenue Officer | H55: 11 | I55: 200 | J55: 00:00:00.031
B56: 47 | C56: http://www.thesearchagency.com/2009/20090529-advertisingagetopsearchmarketingfirm.html | D56: Advertising Age Names The Search Agency a Top U.S. Search Marketing Firm - Press Releases | E56: Advertising Age Names The Search Agency a Top U.S. Search Marketing Firm - Press Release. News and events of The Search Agency. | F56: Advertising Age Names The Search Agency a Top U.S. Search Marketing Firm, search engine marketing, internet marketing, online marketing, search marketing, internet, online, search, optimization, conversion path, conversions, conversion, sem, seo, cpo | G56: Advertising Age Names The Search Agency a Top U.S. Search Marketing Firm | H56: 11 | I56: 200 | J56: 00:00:00.016
B57: 48 | C57: http://www.thesearchagency.com/2008/rising-star-on-deloitte.html | D57: The Search Agency Named Rising Star in Deloitte's Technology Fast 500 Program - Press Releases | E57: The Search Agency Named Rising Star in Deloitte's Technology Fast 500 Program - Press Release. News and events of The Search Agency. | F57: The Search Agency Named Rising Star in Deloitte's Technology Fast 500 Program , search engine marketing, internet marketing, online marketing, search marketing, internet, online, search, optimization, conversion path, conversions, conversion, sem, seo, cpo | G57: The Search Agency Named Rising Star in Deloitte's Technology Fast 500 Program | H57: 12 | I57: 200 | J57: 00:00:00.031
B58: 49 | C58: http://www.thesearchagency.com/2008/the-search-agency-opens-three-new-offices.html | D58: The Search Agency Opens Three New Offices - Press Releases | E58: The Search Agency Opens Three New Offices. Learn more about it in the press release from The Search Agency. | F58: The Search Agency Opens Three New Offices, internet marketing, online marketing, search marketing, internet, online, search, optimization, conversion path, conversions, conversion, sem, seo, cpo | G58: The Search Agency Opens Three New Offices | H58: 10 | I58: 200 | J58: 00:00:00.031
B59: 50 | C59: http://www.thesearchagency.com/2008/may-worldwidepartners-southkorea.html | D59: Worldwide Partners Enters South Korea - Press Releases | E59: Worldwide Partners Enters South Korea; Adds Search And CRM Specialists in the US - Press Release. News and events of The Search Agency. | F59: Worldwide Partners Enters South Korea; Adds Search And CRM Specialists in the US, search engine marketing, internet marketing, online marketing, search marketing, internet, online, search, optimization, conversion path, conversions, conversion, sem, seo, cpo | G59: Worldwide Partners Enters South Korea; Adds Search And CRM Specialists in the US | H59: 12 | I59: 200 | J59: 00:00:00.047
B60: 51 | C60: http://www.thesearchagency.com/2008/may-barbara-palmer.html | D60: The Search Agency Appoints Barbara Palmer as President - Press Releases | E60: The Search Agency Appoints Barbara Palmer as President. Press release, news and events of The Search Agency. | F60: The Search Agency Appoints Barbara Palmer as President, search engine marketing, internet marketing, online marketing, search marketing, internet, online, search, optimization, conversion path, conversions, conversion, sem, seo, cpo | G60: The Search Agency Appoints Barbara Palmer as President | H60: 12 | I60: 200 | J60: 00:00:00.016
B61: 52 | C61: http://www.thesearchagency.com/2008/apr-jmi.html | D61: The Search Agency Announces Strategic Investment From JMI Equity - Press Releases | E61: The Search Agency Announces Strategic Investment From JMI Equity - Press Release. News and events of The Search Agency. | F61: The Search Agency Announces Strategic Investment From JMI Equity, search engine marketing, internet marketing, online marketing, search marketing, internet, online, search, optimization, conversion path, conversions, conversion, sem, seo, cpo | G61: The Search Agency Announces Strategic Investment From JMI Equity | H61: 11 | I61: 200 | J61: 00:00:00.031
B62: 53 | C62: http://www.thesearchagency.com/2007/aug-yahooambassador.html | D62: The Search Agency Named As Yahoo! Search Marketing Certified Ambassador - Press Releases | E62: The Search Agency Named As Yahoo! Search Marketing Certified Ambassador. Read this press release and other news and events of The Search Agency. | F62: The Search Agency Named As Yahoo! Search Marketing Certified Ambassador, search engine marketing, internet marketing, online marketing, search marketing, internet, online, search, optimization, conversion path, conversions, conversion, sem, seo, cpo | G62: The Search Agency Named As Yahoo! Search Marketing Certified Ambassador | H62: 10 | I62: 200 | J62: 00:00:00.078
B63: 54 | C63: http://www.thesearchagency.com/2007/jun-yahoo-panama-release.html | D63: Yahoo opens Panama search ad platform - Press Releases | E63: Yahoo opens Panama search ad platform. Read this press release and other news and events of The Search Agency. | F63: Yahoo opens Panama search ad platform, search engine marketing, internet marketing, online marketing, search marketing, internet, online, search, optimization, conversion path, conversions, conversion, sem, seo, cpo | G63: Yahoo Opens Panama Search Ad Platform | H63: 11 | I63: 200 | J63: 00:00:00.031
B64: 55 | C64: http://www.thesearchagency.com/2007/mar-conversionpathoptimization.html | D64: Launch of Online Conversion Rate Optimization Service - Press Releases | E64: Press Release: The Search Agency Announces the Launch of Online Conversion Rate Optimization Service. News and events of The Search Agency. | F64: The Search Agency Announces the Launch of Online Conversion Rate Optimization Service, internet marketing, online marketing, search marketing, internet, online, search, optimization, conversion path, conversions, conversion, sem, seo, cpo | G64: The Search Agency Announces the Launch of Online Conversion Rate Optimization Service | H64: 11 | I64: 200 | J64: 00:00:00.016
B65: 56 | C65: http://www.thesearchagency.com/2006/dec-yahoo-panama-integration.html | D65: The Search Agency Provides Seamless Integration With Yahoo! Panama - Press Releases | E65: The Search Agency Provides Seamless Integration with Yahoo!'s Panama. Learn more about it in the press release from The Search Agency. | F65: The Search Agency Provides Seamless Integration With Yahoo!'s New Panama Search Marketing Platform, internet marketing, online marketing, search marketing, internet, online, search, optimization, conversion path, conversions, conversion, sem, seo, cpo | G65: The Search Agency Provides Seamless Integration With Yahoo!'s New "Panama" Search Marketing Platform | H65: 12 | I65: 200 | J65: 00:00:00.047
B66: 57 | C66: http://www.thesearchagency.com/2006/nov-partner-summit.html | D66: The Search Agency Hosts Clients and Partners Summit - Press Releases | E66: The Search Agency Hosts Clients and Partners at Search Engine Marketing and Optimization Partner Summit. News and events of The Search Agency. | F66: The Search Agency Hosts Clients and Partners at Search Engine Marketing and Optimization Partner Summit, internet marketing, online marketing, search marketing, internet, online, search, optimization, conversion path, conversions, conversion, sem, seo, cpo | G66: The Search Agency Hosts Clients and Partners at Search Engine Marketing and Optimization Partner Summit | H66: 11 | I66: 200 | J66: 00:00:00.078
B67: 58 | C67: http://www.thesearchagency.com/2006/sep-move-in.html | D67: The Search Agency Completes Move-In - Press Releases | E67: The Search Agency Completes Move-In to Accommodate Hiring Growth. News, press releases, and events of The Search Agency. | F67: The Search Agency Completes Move-In to Accommodate Hiring Growth, internet marketing, online marketing, search marketing, internet, online, search, optimization, conversion path, conversions, conversion, sem, seo, cpo | G67: The Search Agency Completes Move-In to Accommodate Hiring Growth | H67: 11 | I67: 200 | J67: 00:00:00.125
B68: 59 | C68: http://www.thesearchagency.com/pdfs/latinteractivo.pdf | I68: 200 | J68: 00:00:00
B69: 60 | C69: http://www.thesearchagency.com/casestudies/casestudy-avalonbay.pdf | I69: 200 | J69: 00:00:00
B70: 61 | C70: http://www.thesearchagency.com/casestudies/casestudy-lavalife.pdf | I70: 200 | J70: 00:00:00
B71: 62 | C71: http://www.thesearchagency.com/casestudies/casestudy-moviedestination.pdf | I71: 200 | J71: 00:00:00
B72: 63 | C72: http://www.thesearchagency.com/conversion-path-optimization.html | D72: 301 Moved Permanently | E72: No Meta Description | F72: No Meta Keywords | G72: Moved Permanently | H72: 0 | I72: 301 | J72: 00:00:00.016
B73: 64 | C73: http://www.thesearchagency.com/casestudies/casestudy-napster.pdf | I73: 200 | J73: 00:00:00
B74: 65 | C74: http://www.thesearchagency.com/casestudies/casestudy-onlineretail.pdf | I74: 200 | J74: 00:00:00
B75: 66 | C75: http://www.thesearchagency.com/casestudies/casestudy-realestate.pdf | I75: 200 | J75: 00:00:00
B76: 67 | C76: http://www.thesearchagency.com/whitepapers/tsa-whitepaper-google-instant.pdf | I76: 200 | J76: 00:00:00
B77: 68 | C77: http://www.thesearchagency.com/whitepapers/tsa-white-paper-bid-optimization.pdf | I77: 200 | J77: 00:00:00
B78: 69 | C78: http://www.thesearchagency.com/whitepapers/tsa_whitepaper_location_based_social_media.pdf | I78: 200 | J78: 00:00:00
B79: 70 | C79: http://www.thesearchagency.com/whitepapers/TSA_white_paper_SEM_and_SEO_Core_Drivers.pdf | I79: 200 | J79: 00:00:00
B80: 71 | C80: http://www.thesearchagency.com/whitepapers/TSA_white_paper_10_Questions_to_Ask.pdf | I80: 200 | J80: 00:00:00
B81: 72 | C81: http://www.thesearchagency.com/search-marketing-glossary/ad-group.html | D81: Ad Group Definition | E81: The complete definition of Ad Group. The term Ad Group and its definition. Looking for the definition of Ad Group? | F81: Ad Group Glossary Definition | G81: Ad Group | H81: 19 | I81: 200 | J81: 00:00:00.047
B82: 73 | C82: http://www.thesearchagency.com/search-marketing-glossary/local-search.html | D82: Local Search Definition | E82: The complete definition of Local Search. The term Local Search and its definition. Looking for the definition of Local Search? | F82: Local Search Glossary Definition | G82: Local Search | H82: 19 | I82: 200 | J82: 00:00:00.047
B83: 74 | C83: http://www.thesearchagency.com/search-marketing-glossary/admax-bid-tool.html | D83: AdMax™ Bid Tool Definition | E83: The complete definition of AdMax™ Bid Tool. The term AdMax™ Bid Tool and its definition. Looking for the definition of AdMax™ Bid Tool? | F83: AdMax™ Bid Tool Glossary Definition | G83: AdMax™ Bid Tool | H83: 19 | I83: 200 | J83: 00:00:00.016
B84: 75 | C84: http://www.thesearchagency.com/search-marketing-glossary/meta-description-tag.html | D84: Meta Description Tag Definition | E84: The complete definition of Meta Description Tag. The term Meta Description Tag and its definition. Looking for the definition of Meta Description Tag? | F84: Meta Description Tag Glossary Definition | G84: Meta Description Tag | H84: 19 | I84: 200 | J84: 00:00:00.031
B85: 76 | C85: http://www.thesearchagency.com/search-marketing-glossary/algorithm.html | D85: Algorithm Definition | E85: The complete definition of Algorithm. The term Algorithm and its definition. Looking for the definition of Algorithm? | F85: Algorithm Glossary Definition | G85: Algorithm | H85: 19 | I85: 200 | J85: 00:00:00.031
B86: 77 | C86: http://www.thesearchagency.com/search-marketing-glossary/meta-keywords-tag.html | D86: Meta Keywords Tag Definition | E86: The complete definition of Meta Keywords Tag. The term Meta Keywords Tag and its definition. Looking for the definition of Meta Keywords Tag? | F86: Meta Keywords Tag Glossary Definition | G86: Meta Keywords Tag | H86: 19 | I86: 200 | J86: 00:00:00.016
B87: 78 | C87: http://www.thesearchagency.com/search-marketing-glossary/algorithmic-results.html | D87: Algorithmic Results Definition | E87: The complete definition of Algorithmic Results. The term Algorithmic Results and its definition. Looking for the definition of Algorithmic Results? | F87: Algorithmic Results Glossary Definition | G87: Algorithmic Results | H87: 19 | I87: 200 | J87: 00:00:00.016
B88: 79 | C88: http://www.thesearchagency.com/search-marketing-glossary/meta-search-engine.html | D88: Meta Search Engine Definition | E88: The complete definition of Meta Search Engine. The term Meta Search Engine and its definition. Looking for the definition of Meta Search Engine? | F88: Meta Search Engine Glossary Definition | G88: Meta Search Engine | H88: 19 | I88: 200 | J88: 00:00:00.031
B89: 80 | C89: http://www.thesearchagency.com/search-marketing-glossary/alt-text.html | D89: Alt Text Definition | E89: The complete definition of Alt Text. The term Alt Text and its definition. Looking for the definition of Alt Text? | F89: Alt Text Glossary Definition | G89: Alt Text | H89: 19 | I89: 200 | J89: 00:00:00.094
B90: 81 | C90: http://www.thesearchagency.com/search-marketing-glossary/meta-tags.html | D90: Meta Tags Definition | E90: The complete definition of Meta Tags. The term Meta Tags and its definition. Looking for the definition of Meta Tags? | F90: Meta Tags Glossary Definition | G90: Meta Tags | H90: 19 | I90: 200 | J90: 00:00:00.016
B91: 82 | C91: http://www.thesearchagency.com/search-marketing-glossary/api.html | D91: API Definition | E91: The complete definition of API. The term API and its definition. Looking for the definition of API? | F91: API Glossary Definition | G91: API | H91: 19 | I91: 200 | J91: 00:00:00.031
B92: 83 | C92: http://www.thesearchagency.com/search-marketing-glossary/mirror-sites.html | D92: Mirror Sites Definition | E92: The complete definition of Mirror Sites. The term Mirror Sites and its definition. Looking for the definition of Mirror Sites? | F92: Mirror Sites Glossary Definition | G92: Mirror Sites | H92: 19 | I92: 200 | J92: 00:00:00.016
B93: 84 | C93: http://www.thesearchagency.com/search-marketing-glossary/applet.html | D93: Applet Definition | E93: The complete definition of Applet. The term Applet and its definition. Looking for the definition of Applet? | F93: Applet Glossary Definition | G93: Applet | H93: 19 | I93: 200 | J93: 00:00:00.031
B94: 85 | C94: http://www.thesearchagency.com/search-marketing-glossary/mobile-search.html | D94: Mobile Search Definition | E94: The complete definition of Mobile Search. The term Mobile Search and its definition. Looking for the definition of Mobile Search? | F94: Mobile Search Glossary Definition | G94: Mobile Search | H94: 19 | I94: 200 | J94: 00:00:00.031
B95: 86 | C95: http://www.thesearchagency.com/search-marketing-glossary/backlinks.html | D95: Backlinks Definition | E95: The complete definition of Backlinks. The term Backlinks and its definition. Looking for the definition of Backlinks? | F95: Backlinks Glossary Definition | G95: Backlinks | H95: 19 | I95: 200 | J95: 00:00:00.031
B96: 87 | C96: http://www.thesearchagency.com/search-marketing-glossary/modifiers.html | D96: Modifiers Definition | E96: The complete definition of Modifiers. The term Modifiers and its definition. Looking for the definition of Modifiers? | F96: Modifiers Glossary Definition | G96: Modifiers | H96: 19 | I96: 200 | J96: 00:00:00.031
B97: 88 | C97: http://www.thesearchagency.com/search-marketing-glossary/banner.html | D97: Banner Definition | E97: The complete definition of Banner. The term Banner and its definition. Looking for the definition of Banner? | F97: Banner Glossary Definition | G97: Banner | H97: 19 | I97: 200 | J97: 00:00:00.031
B98: 89 | C98: http://www.thesearchagency.com/search-marketing-glossary/natural-search.html | D98: Natural Search Definition | E98: The complete definition of Natural Search. The term Natural Search and its definition. Looking for the definition of Natural Search? | F98: Natural Search Glossary Definition | G98: Natural Search | H98: 19 | I98: 200 | J98: 00:00:00.031
B99: 90 | C99: http://www.thesearchagency.com/search-marketing-glossary/bid-to-position.html | D99: Bid to Position Definition | E99: The complete definition of Bid to Position. The term Bid to Position and its definition. Looking for the definition of Bid to Position? | F99: Bid to Position Glossary Definition | G99: Bid to Position | H99: 19 | I99: 200 | J99: 00:00:00.031
B100: 91 | C100: http://www.thesearchagency.com/search-marketing-glossary/opt-in.html | D100: Opt-In Definition | E100: The complete definition of Opt-In. The term Opt-In and its definition. Looking for the definition of Opt-In? | F100: Opt-In Glossary Definition | G100: Opt-In | H100: 19 | I100: 200 | J100: 00:00:00.031
B101: 92 | C101: http://www.thesearchagency.com/search-marketing-glossary/blog.html | D101: Blog Definition | E101: The complete definition of Blog. The term Blog and its definition. Looking for the definition of Blog? | F101: Blog Glossary Definition | G101: Blog | H101: 19 | I101: 200 | J101: 00:00:00.031
B102: 93 | C102: http://www.thesearchagency.com/search-marketing-glossary/opt-out.html | D102: Opt-Out Definition | E102: The complete definition of Opt-Out. The term Opt-Out and its definition. Looking for the definition of Opt-Out? | F102: Opt-Out Glossary Definition | G102: Opt-Out | H102: 19 | I102: 200 | J102: 00:00:00.031
B103: 94 | C103: http://www.thesearchagency.com/search-marketing-glossary/business-name-terms.html | D103: Business Name Terms Definition | E103: The complete definition of Business Name Terms. The term Business Name Terms and its definition. Looking for the definition of Business Name Terms? | F103: Business Name Terms Glossary Definition | G103: Business Name Terms | H103: 19 | I103: 200 | J103: 00:00:00.031
B104: 95 | C104: http://www.thesearchagency.com/search-marketing-glossary/organic-listings.html | D104: Organic Listings Definition | E104: The complete definition of Organic Listings. The term Organic Listings and its definition. Looking for the definition of Organic Listings? | F104: Organic Listings Glossary Definition | G104: Organic Listings | H104: 18 | I104: 200 | J104: 00:00:00.031
B105: 96 | C105: http://www.thesearchagency.com/search-marketing-glossary/button-exchange.html | D105: Button Exchange Definition | E105: The complete definition of Button Exchange. The term Button Exchange and its definition. Looking for the definition of Button Exchange? | F105: Button Exchange Glossary Definition | G105: Button Exchange | H105: 19 | I105: 200 | J105: 00:00:00.031
B106: 97 | C106: http://www.thesearchagency.com/search-marketing-glossary/organic-search.html | D106: Organic Search Definition | E106: The complete definition of Organic Search. The term Organic Search and its definition. Looking for the definition of Organic Search? | F106: Organic Search Glossary Definition | G106: Organic Search | H106: 19 | I106: 200 | J106: 00:00:00.016
B107: 98 | C107: http://www.thesearchagency.com/search-marketing-glossary/category-terms.html | D107: Category Terms Definition | E107: The complete definition of Category Terms. The term Category Terms and its definition. Looking for the definition of Category Terms? | F107: Category Terms Glossary Definition | G107: Category Terms | H107: 19 | I107: 200 | J107: 00:00:00.031
B108: 99 | C108: http://www.thesearchagency.com/search-marketing-glossary/outbound-links.html | D108: Outbound Links Definition | E108: The complete definition of Outbound Links. The term Outbound Links and its definition. Looking for the definition of Outbound Links? | F108: Outbound Links Glossary Definition | G108: Outbound Links | H108: 18 | I108: 200 | J108: 00:00:00.078
B109: 100 | C109: http://www.thesearchagency.com/search-marketing-glossary/click-through-rate-ctr.html | D109: Click Through Rate (CTR) Definition | E109: The complete definition of Click Through Rate (CTR). The term Click Through Rate (CTR) and its definition. Looking for the definition of Click Through Rate (CTR)? | F109: Click Through Rate (CTR) Glossary Definition | G109: Click Through Rate (CTR) | H109: 19 | I109: 200 | J109: 00:00:00.078
B110: 101 | C110: http://www.thesearchagency.com/search-marketing-glossary/packet-sniffing.html | D110: Packet Sniffing Definition | E110: The complete definition of Packet Sniffing. The term Packet Sniffing and its definition. Looking for the definition of Packet Sniffing? | F110: Packet Sniffing Glossary Definition | G110: Packet Sniffing | H110: 19 | I110: 200 | J110: 00:00:00.016

Sheet Report Data (hidden)
B3: User Agent: | C3: Mozilla/5.0 (compatible; Googlebot/2.1; +http://www.google.com/bot.html)
K7: Issues / Non-Issues | O7: Severity | P7: %
B8: Site Architecture Analysis Summary | K8: Issues | L8: =L10-L9 -> 39 | M8: =L8/L10 -> 0.39 | O8: Critical | P8: =Summary!G9/Summary!$G$12 -> 0.2765957447
K9: Non-Issues ("Remaining Urls") | L9: 61 | M9: =L9/L10 -> 0.61 | O9: Warning | P9: =Summary!G10/Summary!$G$12 -> 0.0780141844
K10: Spidered ("Spidered Urls") | L10: 100 | O10: Info | P10: =Summary!G11/Summary!$G$12 -> 0.6453900709
B12: Short Desc | C12: Long Desc | D12: Number | E12: Priority | K12: Issues Only | O12: CRITICAL | Q12: WARNING | S12: INFO
B13: Short Meta Descriptions | C13: Pages found with meta description tag shorter than 125 characters | D13: 37 | E13: Critical | K13: Short Meta Descriptions | L13: 37 | O13: Short Meta Descriptions | Q13: Short Title Tags | S13: Short Meta Keywords
B14: Duplicate H1 Tags | C14: Pages found with duplicate H1 tags | D14: 2 | E14: Critical | K14: Duplicate H1 Tags | L14: 2 | O14: Duplicate H1 Tags | S14: URL Hyphens
B15: Short Title Tags | C15: Pages found with title tag shorter than 20 characters | D15: 11 | E15: Warning | K15: Short Title Tags | L15: 11 | S15: 301s
B16: Short Meta Keywords | C16: Pages found with meta keyword tag shorter than 80 characters | D16: 51 | E16: Info | K16: Short Meta Keywords | L16: 51 | S16: Short H1 Tags
B17: URL Hyphens | C17: URLs found with six or more hyphens | D17: 3 | E17: Info | K17: URL Hyphens | L17: 3 | S17: Long H1 Tags
B18: 301s | C18: Redirect found - Permanent - 301 Response Code | D18: 1 | E18: Info | K18: 301s | L18: 1
B19: Short H1 Tags | C19: Pages found with H1 tag shorter than 15 characters | D19: 29 | E19: Info | K19: Short H1 Tags | L19: 29
B20: Long H1 Tags | C20: Pages found with H1 tag longer than 75 characters | D20: 7 | E20: Info | K20: Long H1 Tags | L20: 7
B21: Remaining Urls_1 | C21: URLs without issues | D21: 61
B22: Spidered Urls_1 | C22: Spidered URLs (raw data) | D22: 100
